[Event "ISR-chT 2019"]
[Site "Israel"]
[Date "2019.01.04"]
[Round "1"]
[White "Tifferet, Shaked"]
[Black "Bakalchuk, Johnatan"]
[Result "0-1"]
[ECO "B38"]
[WhiteElo "2243"]
[BlackElo "2456"]
[Annotator "ChessBase"]
[PlyCount "120"]
[EventDate "2019.01.04"]
[EventType "team-tourn"]
[EventCountry "ISR"]
[SourceTitle "playchess.com"]
[Source "ChessBase"]
[SourceQuality "1"]
[TimeControl "40/5400+30:1800+30"]

1. e4 {[%emt 0:00:00]} c5 {[%emt 0:00:00]} 2. Nf3 {[%emt 0:00:00]} g6 {[%emt 0:00:00]} 3. c4 {[%emt 0:00:00]} Bg7 {[%emt 0:00:48]} 4. d4 {[%emt 0:00:03]} cxd4 {[%emt 0:01:30]} 5. Nxd4 {[%emt 0:00:08]} Nc6 {[%emt 0:00:04]} 6. Be3 {[%emt 0:00:07]} Qb6 {[%emt 0:05:52]} 7. Nb3 {[%emt 0:00:47]} Qd8 {[%emt 0:00:01]} 8. Qd2 {[%emt 0:00:13]} Nf6 {[%emt 0:00:11]} 9. f3 {[%emt 0:00:05]} O-O {[%emt 0:00:04]} 10. Nc3 {[%emt 0:00:13]} d6 {[%emt 0:00:05]} 11. Be2 {[%emt 0:00:07]} a5 {[%emt 0:01:39]} 12. Nd4 {[%emt 0:00:12]} Nxd4 {[%emt 0:02:03]} 13. Bxd4 {[%emt 0:00:03]} a4 {[%emt 0:04:49]} 14. O-O {[%emt 0:27:44]} Qa5 {[%emt 0:01:21]} 15. Rad1 {[%emt 0:11:02]} Be6 {[%emt 0:02:09]} 16. Nd5 Bxd5 17. exd5 {[%emt 0:17:28]} Nd7 {[%emt 0:07:25]} 18. Bxg7 {[%emt 0:02:16]} Qxd2 {[%emt 0:06:39]} 19. Rxd2 {[%emt 0:01:18]} Kxg7 {[%emt 0:00:01]} 20. Re1 {[%emt 0:01:47]} Nc5 {[%emt 0:06:38]} 21. Bf1 {[%emt 0:05:05]} Rfe8 {[%emt 0:00:38]} 22. Kf2 {[%emt 0:00:17]} Ra6 {[%emt 0:04:45]} 23. Re3 {[%emt 0:01:49]} Rb6 {[%emt 0:18:18]} 24. Ke1 {[%emt 0:01:28]} e5 {[%emt 0:02:28]} 25. dxe6 {[%emt 0:00:38]} fxe6 {[%emt 0:10:16]} 26. f4 {[%emt 0:00:26]} Ra8 {[%emt 0:02:17]} 27. g3 {[%emt 0:12:37]} a3 {[%emt 0:01:19]} 28. Rxa3 {[%emt 0:00:08]} Rxa3 {[%emt 0:00:24]} 29. bxa3 {[%emt 0:00:01]} Ra6 {[%emt 0:04:45]} 30. Bg2 {[%emt 0:05:22]} Kf6 {[%emt 0:00:42]} 31. Ke2 {[%emt 0:02:29]} h6 {[%emt 0:06:57]} 32. Bf3 {[%emt 0:07:35]} g5 {[%emt 0:01:25]} 33. fxg5+ {[%emt 0:00:14]} hxg5 {[%emt 0:00:35]} 34. h4 {[%emt 0:00:49]} gxh4 {[%emt 0:01:47]} 35. gxh4 {[%emt 0:00:01]} e5 {[%emt 0:01:30]} 36. Bd5 {[%emt 0:02:51]} Rxa3 {[%emt 0:01:12]} 37. Rb2 {[%emt 0:00:01]} e4 {[%emt 0:01:26]} 38. Bxb7 {[%emt 0:00:33]} Ke5 {[%emt 0:02:25]} 39. Bc8 {[%emt 0:02:20]} Ra8 {[%emt 0:03:12]} 40. Bh3 {[%emt 0:00:32]} Kd4 {[%emt 0:01:47]} 41. Rd2+ {[%emt 0:06:30]} Nd3 {[%emt 0:01:46]} 42. Bf5 {[%emt 0:00:30]} Rf8 {[%emt 0:05:40]} 43. Bg6 {[%emt 0:18:34]} Rf2+ {[%emt 0:01:18]} 44. Kd1 {[%emt 0:00:06]} Rf1+ {[%emt 0:00:28]} 45. Kc2 {[%emt 0:00:05]} Rc1+ {[%emt 0:00:21]} 46. Kb3 {[%emt 0:00:06]} Rc3+ {[%emt 0:00:42]} 47. Ka4 {[%emt 0:00:06]} e3 {[%emt 0:04:58]} 48. Rh2 {[%emt 0:08:33]} Rxc4+ {[%emt 0:03:55]} 49. Kb5 {[%emt 0:00:21]} Rc5+ {[%emt 0:00:47]} 50. Kb6 {[%emt 0:00:23]} Nf2 {[%emt 0:02:35]} 51. Rg2 {[%emt 0:00:53]} e2 {[%emt 0:02:35]} 52. Rg1 {[%emt 0:00:02]} Nh3 {[%emt 0:03:13]} 53. Rb1 {[%emt 0:01:00]} Nf4 {[%emt 0:00:56]} 54. h5 {[%emt 0:00:30]} Nxg6 {[%emt 0:01:14]} 55. hxg6 {[%emt 0:00:03]} Rg5 {[%emt 0:00:17]} 56. a4 {[%emt 0:00:48]} Rxg6 {[%emt 0:00:10]} 57. a5 {[%emt 0:00:10]} d5+ {[%emt 0:00:13]} 58. Kb5 {[%emt 0:00:46]} Kc3 {[%emt 0:00:39]} 59. Kc5 {[%emt 0:00:44]} d4 {[%emt 0:00:01]} 60. Rc1+ {[%emt 0:00:29]} Kd2 {[%emt 0:00:14]} 0-1

[Event "ISR-chT 2019"]
[Site "Israel"]
[Date "2019.02.08"]
[Round "3.3"]
[White "Kundin, Alexander"]
[Black "Zilberman, Yaacov"]
[Result "1/2-1/2"]
[ECO "C75"]
[WhiteElo "2311"]
[BlackElo "2334"]
[Annotator "NA"]
[PlyCount "49"]
[EventDate "2019.01.04"]
[EventType "team-tourn"]
[EventCountry "ISR"]
[SourceTitle "playchess.com"]
[Source "ChessBase"]
[SourceQuality "1"]
[TimeControl "40/5400+30:1800+30"]

1. e4 {[%emt 0:04:45]} e5 {[%emt 0:00:00]} 2. Nf3 {[%emt 0:00:13]} Nc6 {[%emt 0:00:00]} 3. Bb5 {[%emt 0:00:09]} a6 {[%emt 0:00:03]} 4. Ba4 {[%emt 0:00:06]} d6 {[%emt 1:31:57]} 5. O-O Bd7 {[%emt 0:00:30]} 6. c3 {[%emt 0:15:06]} Nge7 {[%emt 0:00:00]} 7. d4 {[%emt 0:01:15]} Ng6 {[%emt 0:00:00]} 8. d5 {[%emt 0:01:20]} Nb8 {[%emt 0:00:00]} 9. c4 {[%emt 0:00:14]} Be7 {[%emt 0:00:00]} 10. Nc3 {[%emt 0:00:13]} O-O {[%emt 0:00:00]} 11. Bxd7 {[%emt 0:02:36]} Nxd7 {[%emt 0:00:00]} 12. Be3 {[%emt 0:02:08]} h6 {[%emt 0:00:00]} 13. b4 {[%emt 0:16:32]} Nh4 {[%emt 0:00:00]} 14. Nxh4 {[%emt 0:06:38]} Bxh4 {[%emt 0:00:00]} 15. c5 {[%emt 0:07:35]} Bg5 {[%emt 0:00:00]} 16. Bxg5 {[%emt 0:05:29]} Qxg5 {[%emt 0:00:00]} 17. c6 {[%emt 0:00:13]} Nf6 {[%emt 0:00:00]} 18. cxb7 {[%emt 0:04:46]} Ra7 {[%emt 0:00:00]} 19. Qd3 {[%emt 0:01:33]} Rb8 {[%emt 0:00:00]} 20. b5 {[%emt 0:04:31]} axb5 {[%emt 0:00:00]} 21. Nxb5 {[%emt 0:04:30]} Raxb7 {[%emt 0:00:00]} 22. a4 {[%emt 0:01:11]} Nd7 {[%emt 0:00:00]} 23. Rfb1 {[%emt 0:03:25]} Nc5 {[%emt 0:00:00]} 24. Qc2 {[%emt 0:01:06]} Qd8 {[%emt 0:00:00]} 25. Rb2 $11 {[%emt 0:07:48]} 1/2-1/2

[Event "ISR-chT 2019"]
[Site "Israel"]
[Date "2019.02.08"]
[Round "3.15"]
[White "Galburd, Yan"]
[Black "Vydeslaver, Alik"]
[Result "1/2-1/2"]
[ECO "D00"]
[WhiteElo "2397"]
[BlackElo "2386"]
[Annotator "NA"]
[PlyCount "73"]
[EventDate "2019.01.04"]
[EventType "team-tourn"]
[EventCountry "ISR"]
[SourceTitle "playchess.com"]
[Source "ChessBase"]
[SourceQuality "1"]
[TimeControl "40/5400+30:1800+30"]

1. d4 {[%emt 0:00:00]} d5 {[%emt 0:00:14]} 2. Bf4 {[%emt 0:00:07]} c6 {[%emt 0:00:40]} 3. e3 {[%emt 0:00:54]} Bf5 {[%emt 0:05:48]} 4. c4 {[%emt 0:04:26]} e6 {[%emt 0:07:38]} 5. Nc3 {[%emt 0:02:47]} Nd7 {[%emt 0:00:31]} 6. Nf3 {[%emt 0:07:22]} Qb6 {[%emt 0:04:37]} 7. Qd2 {[%emt 0:03:45]} Ngf6 {[%emt 0:05:21]} 8. c5 {[%emt 0:05:31]} Qd8 {[%emt 0:03:52]} 9. Be2 {[%emt 0:14:06]} Be7 {[%emt 0:05:04]} 10. h3 {[%emt 0:07:02]} b5 {[%emt 0:04:38]} 11. a3 {[%emt 0:05:19]} a5 {[%emt 0:00:37]} 12. O-O {[%emt 0:04:38]} O-O {[%emt 0:02:22]} 13. b4 {[%emt 0:03:18]} Ne4 {[%emt 0:11:34]} 14. Qb2 {[%emt 0:01:28]} Nxc3 {[%emt 0:03:54]} 15. Qxc3 {[%emt 0:00:02]} a4 {[%emt 0:01:39]} 16. Rfe1 {[%emt 0:07:17]} Re8 {[%emt 0:05:25]} 17. Bd3 {[%emt 0:05:38]} Bf6 {[%emt 0:08:53]} 18. e4 {[%emt 0:03:16]} dxe4 {[%emt 0:02:36]} 19. Bxe4 {[%emt 0:00:03]} Bxe4 {[%emt 0:00:19]} 20. Rxe4 {[%emt 0:00:02]} Nf8 {[%emt 0:01:08]} 21. Be5 {[%emt 0:03:43]} Qd5 $11 {[%emt 0:05:44]} 22. Rae1 {[%emt 0:01:09]} Bxe5 {[%emt 0:06:20]} 23. dxe5 {[%emt 0:02:21]} Qb3 {[%emt 0:01:25]} 24. Qe3 {[%emt 0:08:44]} Red8 {[%emt 0:02:38]} 25. Nd4 {[%emt 0:00:38]} Qxe3 {[%emt 0:03:10]} 26. R1xe3 {[%emt 0:00:02]} Rac8 {[%emt 0:00:57]} 27. f4 {[%emt 0:00:12]} Rc7 {[%emt 0:02:38]} 28. f5 {[%emt 0:01:10]} exf5 {[%emt 0:00:34]} 29. Nxf5 {[%emt 0:00:06]} Rd1+ {[%emt 0:00:21]} 30. Kh2 {[%emt 0:00:36]} Ne6 {[%emt 0:00:47]} 31. Rg4 {[%emt 0:03:37]} g6 {[%emt 0:00:28]} 32. Nd6 {[%emt 0:00:35]} Re7 {[%emt 0:00:28]} 33. Nc8 {[%emt 0:03:15]} Rc7 {[%emt 0:00:21]} 34. Nd6 {[%emt 0:00:07]} Re7 {[%emt 0:00:04]} 35. Nc8 {[%emt 0:02:01]} Rc7 {[%emt 0:00:04]} 36. Nd6 {[%emt 0:00:18]} Re7 {[%emt 0:00:07]} 37. Nc8 {[%emt 0:01:17]} 1/2-1/2

[Event "ISR-chT 2019"]
[Site "Israel"]
[Date "2019.02.08"]
[Round "3.16"]
[White "Klenburg, Michael"]
[Black "Parkhov, Yair"]
[Result "1/2-1/2"]
[ECO "B25"]
[WhiteElo "2361"]
[BlackElo "2336"]
[Annotator "NA"]
[PlyCount "78"]
[EventDate "2019.01.04"]
[EventType "team-tourn"]
[EventCountry "ISR"]
[SourceTitle "playchess.com"]
[Source "ChessBase"]
[SourceQuality "1"]
[TimeControl "40/5400+30:1800+30"]

1. e4 {[%emt 0:00:01]} c5 {[%emt 0:00:00]} 2. d3 {[%emt 0:00:06]} ({Predecessor:} 2. Nc3 Nc6 3. g3 g6 4. Bg2 Bg7 5. d3 Nf6 6. f4 d6 7. Nf3 O-O 8. O-O Rb8 9. h3 b5 {½-½ (44) Davies,N (2460)-Ivanov,I (2510) London 1992 ½-½ (78) Amin,B (2663)-Can,E (2578) Dubai 2017}) 2... Nc6 {[%emt 0:01:53]} 3. g3 {[%emt 0:00:06]} g6 {[%emt 0:06:45]} 4. Bg2 {[%emt 0:03:31]} Bg7 {[%emt 0:00:36]} 5. f4 {[%emt 0:00:06]} d6 {[%emt 0:02:31]} 6. Nf3 {[%emt 0:00:06]} Nf6 {[%emt 0:00:13]} 7. O-O {[%emt 0:00:08]} O-O {[%emt 0:00:11]} 8. h3 $146 {[%emt 0:00:18]} Rb8 {[%emt 0:03:27]} 9. g4 {[%emt 0:00:16]} b5 {[%emt 0:02:22]} 10. Nc3 {[%emt 0:00:06]} b4 {[%emt 0:05:29]} 11. Ne2 {[%emt 0:00:37]} Ne8 {[%emt 0:04:01] B25: Closed Sicilian: 3 g3, lines without early Be3} (11... a5 12. f5 c4 13. Be3 Ba6 14. Qd2 Ne5 15. Nxe5 dxe5 16. dxc4 Bxc4 17. Qxd8 Rfxd8 18. Rf2 Ne8 19. Ng3 Nd6 {½-½ (78) Amin,B (2663)-Can,E (2578) Dubai 2017}) 12. f5 {[%emt 0:04:32]} Nc7 {[%emt 0:00:48]} 13. Qe1 {[%emt 0:01:19]} Nb5 {[%emt 0:04:03]} 14. Qh4 {[%emt 0:01:44]} Nbd4 {[%emt 0:17:02]} 15. Nexd4 {[%emt 0:00:51]} Nxd4 {[%emt 0:00:17]} 16. Nxd4 {[%emt 0:00:51]} cxd4 {[%emt 0:02:09]} ({Predecessor:} 16... Bxd4+ 17. Kh1 Bb7 18. Rb1 a5 19. Bh6 {½-½ (44) Davies,N (2460)-Ivanov,I (2510) London 1992}) 17. Bg5 {[%emt 0:01:44]} Rb7 {[%emt 0:06:17]} 18. Rf2 {[%emt 0:04:02]} Rc7 {[%emt 0:09:11]} 19. a3 {[%emt 0:02:36]} a5 {[%emt 0:03:52]} 20. axb4 {[%emt 0:01:55]} axb4 {[%emt 0:00:09]} 21. Ra8 {[%emt 0:11:37]} f6 {[%emt 0:06:48]} 22. Bd2 {[%emt 0:12:06]} Rxc2 {[%emt 0:00:16]} 23. Bxb4 {[%emt 0:00:23]} Rc1+ {[%emt 0:00:21]} 24. Rf1 {[%emt 0:03:48]} Qc7 {[%emt 0:06:12]} 25. Ba3 $2 {[%emt 0:05:38]} (25. Rxc1 $14 {stays ahead.} Qxc1+ {[%mdl 64] Double Attack} 26. Qe1) 25... Qc2 $11 {[%emt 0:05:28]} ({Better is} 25... Rxf1+ $17 26. Bxf1 Bb7) 26. Qf2 {[%emt 0:23:03]} Rxf1+ {[%emt 0:01:11]} 27. Bxf1 {[%emt 0:00:16]} Qc6 {[%emt 0:00:14]} 28. Rb8 {[%emt 0:05:17]} Bh6 {[%emt 0:01:13]} 29. Qxd4 {[%emt 0:01:11]} Qc1 {[%emt 0:00:07]} 30. Qc4+ {[%emt 0:02:10]} Qxc4 {[%emt 0:00:42]} 31. dxc4 {[%emt 0:00:03]} gxf5 {[%emt 0:00:54]} 32. gxf5 {[%emt 0:03:38]} Bf4 {[%emt 0:01:33]} 33. Ra8 {[%emt 0:01:39]} Bb7 {[%emt 0:03:23]} 34. Rxf8+ {[%emt 0:00:46]} Kxf8 {[%emt 0:00:05]} 35. Bd3 {[%emt 0:00:06]} Bc1 {[%emt 0:00:19]} 36. Kf2 {[%emt 0:01:14]} Kg7 {[%emt 0:01:44]} 37. Kf3 {[%emt 0:01:53]} Kh6 {[%emt 0:00:21]} 38. Kg4 {[%emt 0:03:00]} Bc6 {[%emt 0:01:48]} 39. Bc2 {[%emt 0:01:25]} Be8 {[%emt 0:01:11]} 1/2-1/2

[Event "ISR-chT 2019"]
[Site "Israel"]
[Date "2019.02.08"]
[Round "3.17"]
[White "Psakhis, Lev"]
[Black "Sidorenko, Ilya"]
[Result "1-0"]
[ECO "E94"]
[WhiteElo "2455"]
[BlackElo "2395"]
[Annotator "ChessBase"]
[PlyCount "63"]
[EventDate "2019.01.04"]
[EventType "team-tourn"]
[EventCountry "ISR"]
[SourceTitle "playchess.com"]
[Source "ChessBase"]
[SourceQuality "1"]
[TimeControl "40/5400+30:1800+30"]

1. Nf3 {[%emt 0:00:00]} Nf6 {[%emt 0:00:12]} 2. c4 {[%emt 0:00:00]} g6 {[%emt 0:01:53]} 3. Nc3 {[%emt 0:00:21]} Bg7 {[%emt 0:00:29]} 4. e4 {[%emt 0:00:11]} d6 {[%emt 0:00:29]} 5. d4 {[%emt 0:00:07]} O-O {[%emt 0:00:08]} 6. Be2 {[%emt 0:00:08]} e5 {[%emt 0:05:05]} 7. O-O {[%emt 0:01:18]} Nbd7 {[%emt 0:02:29]} 8. d5 {[%emt 0:01:31]} c6 {[%emt 0:02:03]} 9. Qc2 {[%emt 0:02:01]} Qc7 {[%emt 0:00:30]} 10. Rd1 {[%emt 0:05:16]} a5 {[%emt 0:06:13]} 11. Bg5 {[%emt 0:19:26]} h6 {[%emt 0:14:12]} 12. Bd2 {[%emt 1:05:41]} Nc5 {[%emt 0:06:34]} 13. Be3 {[%emt 0:00:00]} cxd5 {[%emt 0:06:07]} 14. Nxd5 {[%emt 0:00:00]} Nxd5 {[%emt 0:01:38]} 15. Bxc5 {[%emt 0:00:00]} Qxc5 {[%emt 0:05:19]} 16. Rxd5 {[%emt 0:00:00]} Qc7 {[%emt 0:00:01]} 17. Rad1 {[%emt 0:00:00]} Be6 {[%emt 0:03:13]} 18. Rxd6 {[%emt 0:00:00]} Rfc8 {[%emt 0:00:01]} 19. a4 {[%emt 0:00:00]} Bf8 {[%emt 0:05:13]} 20. R6d2 {[%emt 0:00:00]} Kh7 {[%emt 0:11:51]} 21. b3 {[%emt 0:00:00]} g5 {[%emt 0:07:08]} 22. h3 {[%emt 0:00:00]} Bc5 {[%emt 0:00:40]} 23. Nh2 {[%emt 0:00:00]} Bb4 {[%emt 0:04:06]} 24. Rd3 {[%emt 0:00:00]} b5 {[%emt 0:02:52]} 25. axb5 {[%emt 0:00:00]} a4 {[%emt 0:00:02]} 26. Bg4 {[%emt 0:01:59]} axb3 {[%emt 0:01:09]} 27. Qxb3 {[%emt 0:02:06]} Qxc4 {[%emt 0:01:04]} 28. Bxe6 {[%emt 0:00:11]} fxe6 {[%emt 0:00:08]} 29. Ng4 {[%emt 0:01:02]} Qxb3 {[%emt 0:00:42]} 30. Rxb3 {[%emt 0:00:01]} Bc3 {[%emt 0:02:17]} 31. b6 {[%emt 0:00:18]} Rab8 {[%emt 0:00:48]} 32. Rc1 {[%emt 0:00:32]} 1-0

[Event "ISR-chT 2019"]
[Site "Israel"]
[Date "2019.02.08"]
[Round "3.17"]
[White "Psakhis, Lev"]
[Black "Sidorenko, Ilya"]
[Result "*"]
[ECO "E94"]
[WhiteElo "2455"]
[BlackElo "2395"]
[Annotator "RC"]
[PlyCount "20"]
[EventDate "2019.01.04"]
[EventType "team-tourn"]
[EventCountry "ISR"]
[SourceTitle "playchess.com"]
[Source "ChessBase"]
[SourceQuality "1"]
[TimeControl "40/5400+30:1800+30"]

1. Nf3 {[%emt 0:00:00]} Nf6 {[%emt 0:00:12]} 2. c4 {[%emt 0:00:00]} g6 {[%emt 0:01:53]} 3. Nc3 {[%emt 0:00:21]} Bg7 {[%emt 0:00:29]} 4. e4 {[%emt 0:00:11]} d6 {[%emt 0:00:29]} 5. d4 {[%emt 0:00:07]} O-O {[%emt 0:00:08]} 6. Be2 {[%emt 0:00:08]} e5 {[%emt 0:05:05]} 7. O-O {[%emt 0:01:18]} Nbd7 {[%emt 0:02:29]} 8. Qc2 {[%emt 0:01:31]} c6 {[%emt 0:02:03]} 9. Rd1 {[%emt 0:02:01]} Qc7 {[%emt 0:02:32]} 10. d5 {[%emt 0:05:16]} a5 {[%emt 0:04:11]} *

[Event "ISR-chT 2019"]
[Site "Israel"]
[Date "2019.02.08"]
[Round "3.23"]
[White "Rozentalis, Eduardas"]
[Black "Drori, Saar"]
[Result "1-0"]
[ECO "B51"]
[WhiteElo "2526"]
[BlackElo "2386"]
[Annotator "RC"]
[PlyCount "145"]
[EventDate "2019.01.04"]
[EventType "team-tourn"]
[EventCountry "ISR"]
[SourceTitle "playchess.com"]
[Source "ChessBase"]
[SourceQuality "1"]
[TimeControl "40/5400+30:1800+30"]

1. e4 {[%emt 0:00:00]} c5 {[%emt 0:00:00]} 2. Nf3 {[%emt 0:00:00]} d6 {[%emt 0:00:00]} 3. Bb5+ {[%emt 0:00:25]} Nd7 {[%emt 0:00:02]} 4. Ba4 {[%emt 0:02:14]} Ngf6 {[%emt 0:04:09]} 5. O-O {[%emt 0:00:39]} Nxe4 {[%emt 0:15:42]} 6. Re1 {[%emt 0:01:00]} d5 {[%emt 0:10:53]} 7. c4 {[%emt 0:03:25]} Nef6 {[%emt 0:16:00]} 8. cxd5 {[%emt 0:01:50]} Nxd5 {[%emt 0:07:08]} 9. d4 {[%emt 0:00:30]} N5b6 {[%emt 0:09:40]} 10. dxc5 {[%emt 0:03:43]} Nxa4 {[%emt 0:00:07]} 11. Qxa4 {[%emt 0:00:04]} e6 {[%emt 0:03:23]} 12. Be3 {[%emt 0:08:52]} Be7 {[%emt 0:05:14]} 13. Nc3 {[%emt 0:06:04]} O-O {[%emt 0:00:56]} 14. Rad1 {[%emt 0:00:06]} Qe8 {[%emt 0:06:26]} 15. b4 {[%emt 0:02:40]} a6 {[%emt 0:09:30]} 16. Bf4 {[%emt 0:03:50]} Nf6 {[%emt 0:04:23]} 17. Qxe8 {[%emt 0:14:52]} Rxe8 {[%emt 0:00:02]} 18. Bd6 {[%emt 0:05:21]} Bd8 {[%emt 0:01:00]} 19. Ne5 {[%emt 0:02:33]} Nd7 {[%emt 0:01:23]} 20. Nc4 {[%emt 0:02:18]} b5 {[%emt 0:01:16]} 21. Ne5 {[%emt 0:13:07]} Nxe5 {[%emt 0:00:54]} 22. Bxe5 {[%emt 0:00:12]} Bb7 {[%emt 0:01:05]} 23. Ne4 {[%emt 0:00:44]} Bc6 {[%emt 0:00:31]} 24. a3 {[%emt 0:03:12]} Be7 {[%emt 0:00:42]} 25. Bd6 {[%emt 0:00:55]} Bd8 {[%emt 0:00:20]} 26. f3 {[%emt 0:01:33]} Rc8 {[%emt 0:00:28]} 27. Kf2 {[%emt 0:02:54]} f6 {[%emt 0:00:32]} 28. Bg3 {[%emt 0:04:56]} Be7 {[%emt 0:00:19]} 29. Nd6 {[%emt 0:00:05]} Bxd6 {[%emt 0:00:05]} 30. Rxd6 {[%emt 0:00:03]} Kf7 {[%emt 0:01:00]} 31. f4 {[%emt 0:01:20]} Re7 {[%emt 0:00:57]} 32. Bh4 {[%emt 0:01:22]} h6 {[%emt 0:00:45]} 33. g4 {[%emt 0:00:14]} Ree8 {[%emt 0:00:53]} 34. Bg3 {[%emt 0:02:54]} Re7 {[%emt 0:00:24]} 35. h4 {[%emt 0:00:26]} Ree8 {[%emt 0:00:16]} 36. g5 {[%emt 0:00:50]} h5 {[%emt 0:00:48]} 37. f5 {[%emt 0:02:48]} e5 {[%emt 0:00:05]} 38. Ke3 {[%emt 0:02:16]} Red8 {[%emt 0:00:36]} 39. Red1 {[%emt 0:00:28]} Rxd6 {[%emt 0:00:47]} 40. Rxd6 {[%emt 0:00:08]} Ke7 {[%emt 0:00:12]} 41. Be1 {[%emt 0:32:35]} Rc7 {[%emt 0:05:40]} 42. Bc3 {[%emt 0:00:00]} Rc8 {[%emt 0:02:54]} 43. Bd2 {[%emt 0:00:00]} Rc7 {[%emt 0:01:12]} 44. Kf2 {[%emt 0:00:00]} Bb7 {[%emt 0:02:58]} 45. Re6+ {[%emt 0:00:00]} Kf7 {[%emt 0:00:10]} 46. Rb6 {[%emt 0:00:00]} Bc8 {[%emt 0:01:35]} 47. Be3 {[%emt 0:00:00]} Bxf5 {[%emt 0:01:58]} 48. Rxa6 {[%emt 0:00:00]} Bd7 {[%emt 0:00:19]} 49. Rb6 {[%emt 0:00:00]} Ke7 {[%emt 0:07:49]} 50. gxf6+ {[%emt 0:00:00]} gxf6 {[%emt 0:01:44]} 51. a4 {[%emt 0:00:29]} bxa4 {[%emt 0:04:18]} 52. b5 {[%emt 0:00:07]} a3 {[%emt 0:02:44]} 53. c6 {[%emt 0:00:04]} a2 {[%emt 0:01:47]} 54. Ra6 {[%emt 0:01:59]} Be6 {[%emt 0:00:29]} 55. Bc5+ {[%emt 0:00:46]} Kf7 {[%emt 0:00:17]} 56. Bd6 {[%emt 0:03:33]} Rc8 {[%emt 0:00:14]} 57. Ra7+ {[%emt 0:01:21]} Kg6 {[%emt 0:02:38]} 58. b6 {[%emt 0:01:08]} Rxc6 {[%emt 0:00:39]} 59. b7 {[%emt 0:00:03]} Rc2+ {[%emt 0:00:27]} 60. Ke3 {[%emt 0:00:36]} Rc3+ {[%emt 0:00:40]} 61. Kd2 {[%emt 0:00:24]} Rb3 {[%emt 0:00:23]} 62. b8=Q {[%emt 0:00:09]} Rxb8 {[%emt 0:00:03]} 63. Bxb8 {[%emt 0:00:06]} Kf5 {[%emt 0:00:06]} 64. Bc7 {[%emt 0:02:40]} Kg4 {[%emt 0:00:56]} 65. Bd8 {[%emt 0:00:17]} f5 {[%emt 0:00:37]} 66. Bf6 {[%emt 0:00:28]} Kf4 {[%emt 0:00:49]} 67. Ke2 {[%emt 0:00:58]} Bc4+ {[%emt 0:00:24]} 68. Kf2 {[%emt 0:00:06]} e4 {[%emt 0:00:12]} 69. Bg5+ {[%emt 0:01:48]} Kg4 {[%emt 0:00:01]} 70. Ke3 {[%emt 0:00:07]} Bd5 {[%emt 0:00:03]} 71. Rg7 {[%emt 0:00:43]} Be6 {[%emt 0:00:52]} 72. Bf6+ {[%emt 0:00:07]} Kh3 {[%emt 0:00:03]} 73. Kf4 {[%emt 0:00:33]} 1-0

[Event "ISR-chT 2019"]
[Site "Israel"]
[Date "2019.02.08"]
[Round "3.26"]
[White "Bakalchuk, Johnatan"]
[Black "Flom, Gabriel"]
[Result "1-0"]
[ECO "C17"]
[WhiteElo "2456"]
[BlackElo "2467"]
[Annotator "ChessBase"]
[PlyCount "65"]
[EventDate "2019.01.04"]
[EventType "team-tourn"]
[EventCountry "ISR"]
[SourceTitle "playchess.com"]
[Source "ChessBase"]
[SourceQuality "1"]
[TimeControl "40/5400+30:1800+30"]

1. e4 {[%emt 0:00:00]} e6 {[%emt 0:00:00]} 2. d4 {[%emt 0:00:00]} d5 {[%emt 0:00:00]} 3. Nc3 {[%emt 0:00:04]} Bb4 {[%emt 0:00:00]} 4. e5 {[%emt 0:00:08]} c5 {[%emt 0:00:00]} 5. Bd2 {[%emt 0:00:32]} Nh6 {[%emt 0:01:16]} 6. a3 {[%emt 0:00:50]} Bxc3 {[%emt 0:00:14]} 7. Bxc3 {[%emt 0:00:02]} b6 {[%emt 0:10:29]} 8. Bb5+ {[%emt 0:03:02]} Bd7 {[%emt 0:01:13]} 9. Bd3 {[%emt 0:00:12]} Nc6 {[%emt 0:01:00]} 10. f4 {[%emt 0:00:42]} cxd4 {[%emt 0:04:10]} 11. Bd2 {[%emt 0:01:20]} f6 {[%emt 0:07:32]} 12. Nf3 {[%emt 0:08:00]} O-O {[%emt 0:05:18]} 13. O-O {[%emt 0:00:35]} fxe5 {[%emt 0:03:44]} 14. fxe5 {[%emt 0:02:05]} Nf5 {[%emt 0:00:56]} 15. Qe1 {[%emt 0:03:29]} h6 {[%emt 0:09:27]} 16. g4 {[%emt 0:02:14]} Ne3 {[%emt 0:04:19]} 17. Bxe3 {[%emt 0:00:06]} dxe3 {[%emt 0:00:01]} 18. Qxe3 {[%emt 0:00:14]} Qe7 {[%emt 0:06:04]} 19. b4 {[%emt 0:00:58]} g5 {[%emt 0:01:19]} 20. b5 {[%emt 0:07:00]} Na5 {[%emt 0:01:01]} 21. Nd4 {[%emt 0:05:23]} Rxf1+ {[%emt 0:02:53]} 22. Rxf1 {[%emt 0:00:16]} Rf8 {[%emt 0:00:01]} 23. h4 {[%emt 0:05:53]} Rxf1+ {[%emt 0:08:13]} 24. Kxf1 {[%emt 0:03:43]} Nb7 {[%emt 0:22:05]} 25. hxg5 {[%emt 0:03:04]} hxg5 {[%emt 0:03:29]} 26. Nf3 {[%emt 0:04:20]} Nc5 {[%emt 0:00:05]} 27. a4 {[%emt 0:04:06]} Nxa4 {[%emt 0:00:30]} 28. Nxg5 {[%emt 0:00:25]} Qf8+ {[%emt 0:03:58]} 29. Kg2 {[%emt 0:02:48]} Qb4 {[%emt 0:03:32]} 30. Kh3 {[%emt 0:03:37]} Bxb5 {[%emt 0:02:11]} 31. Qf3 {[%emt 0:04:14]} Bxd3 {[%emt 0:00:00]} 32. Qf7+ {[%emt 0:00:21]} Kh8 {[%emt 0:00:00]} 33. cxd3 {[%emt 0:00:32]} 1-0